[Event "MČR družstev mladších žáků 2024"]
[Site "Harrachov, Czech Republic"]
[Date "2024.06.16"]
[Round "9.22"]
[White "Malek Daniel"]
[Black "Jenikova Sabina"]
[Result "1-0"]
[TimeControl "25+10"]
[WhiteFideId "23742720"]
[BlackFideId "23759860"]
[WhiteElo "1246"]
[BlackElo "1114"]

1. e4 {[%clk 00:25:17]} {[%emt 00:00:03]} e6 {[%clk 00:25:13]} {[%emt
00:00:08]} 2. d4 {[%clk 00:25:03]} {[%emt 00:00:24]} b6 {[%clk 00:25:20]}
{[%emt 00:00:03]} 3. Nf3 {[%clk 00:24:28]} {[%emt 00:00:44]} Bb7 {[%clk
00:25:28]} {[%emt 00:00:03]} 4. Bd3 {[%clk 00:24:27]} {[%emt 00:00:10]} Nf6
{[%clk 00:24:33]} {[%emt 00:01:05]} 5. Bg5 {[%clk 00:24:20]} {[%emt 00:00:18]}
Be7 {[%clk 00:24:38]} {[%emt 00:00:05]} 6. Nc3 {[%clk 00:24:26]} {[%emt
00:00:04]} d6 {[%clk 00:24:06]} {[%emt 00:00:42]} 7. O-O {[%clk 00:23:38]}
{[%emt 00:00:58]} Nbd7 {[%clk 00:23:49]} {[%emt 00:00:27]} 8. Qd2 {[%clk
00:20:12]} {[%emt 00:03:35]} h6 {[%clk 00:23:25]} {[%emt 00:00:35]} 9. Be3
{[%clk 00:18:34]} {[%emt 00:01:46]} c5 {[%clk 00:19:12]} {[%emt 00:04:24]} 10.
d5 {[%clk 00:15:54]} {[%emt 00:02:50]} exd5 {[%clk 00:17:32]} {[%emt 00:01:51]}
11. exd5 {[%clk 00:15:58]} {[%emt 00:00:06]} Nxd5 {[%clk 00:14:15]} {[%emt
00:03:27]} 12. Be4 {[%clk 00:15:23]} {[%emt 00:00:44]} Nxe3 {[%clk 00:14:03]}
{[%emt 00:00:23]} 13. Qxe3 {[%clk 00:14:37]} {[%emt 00:00:56]} Qc8 {[%clk
00:10:47]} {[%emt 00:03:24]} 14. Rfe1 {[%clk 00:13:42]} {[%emt 00:01:07]} Bxe4
{[%clk 00:08:04]} {[%emt 00:02:53]} 15. Qxe4 {[%clk 00:13:34]} {[%emt
00:00:17]} Qd8 {[%clk 00:08:07]} {[%emt 00:00:08]} 16. Nd5 {[%clk 00:13:08]}
{[%emt 00:00:35]} Kf8 {[%clk 00:03:27]} {[%emt 00:04:50]} 17. Qxe7+ {[%clk
00:12:52]} {[%emt 00:00:27]} Qxe7 {[%clk 00:03:23]} {[%emt 00:00:14]} 18. Nxe7
{[%clk 00:12:48]} {[%emt 00:00:13]} Nf6 {[%clk 00:02:53]} {[%emt 00:00:41]} 19.
Nf5 {[%clk 00:12:05]} {[%emt 00:00:51]} Rd8 {[%clk 00:01:49]} {[%emt 00:01:15]}
20. Rad1 {[%clk 00:12:02]} {[%emt 00:00:13]} d5 {[%clk 00:01:50]} {[%emt
00:00:09]} 21. c3 {[%clk 00:11:51]} {[%emt 00:00:21]} Ne4 {[%clk 00:01:40]}
{[%emt 00:00:19]} 22. Rxe4 {[%clk 00:11:45]} {[%emt 00:00:18]} g6 {[%clk
00:01:24]} {[%emt 00:00:26]} 23. Ng3 {[%clk 00:11:46]} {[%emt 00:00:09]} Kg7
{[%clk 00:01:24]} {[%emt 00:00:10]} 24. Re5 {[%clk 00:11:40]} {[%emt 00:00:15]}
d4 {[%clk 00:01:27]} {[%emt 00:00:07]} 25. cxd4 {[%clk 00:11:47]} {[%emt
00:00:04]} cxd4 {[%clk 00:01:35]} {[%emt 00:00:02]} 26. Rxd4 {[%clk 00:11:41]}
{[%emt 00:00:15]} Rc8 {[%clk 00:01:39]} {[%emt 00:00:07]} 27. Rd1 {[%clk
00:11:47]} {[%emt 00:00:03]} Rc2 {[%clk 00:01:31]} {[%emt 00:00:18]} 28. Re2
{[%clk 00:11:55]} {[%emt 00:00:03]} Rc7 {[%clk 00:01:36]} {[%emt 00:00:05]} 29.
h3 {[%clk 00:11:48]} {[%emt 00:00:17]} Rhc8 {[%clk 00:01:16]} {[%emt 00:00:29]}
30. Nd4 {[%clk 00:11:06]} {[%emt 00:00:52]} Rd7 {[%clk 00:01:07]} {[%emt
00:00:20]} 31. Ne6+ {[%clk 00:11:07]} {[%emt 00:00:08]} fxe6 {[%clk 00:01:02]}
{[%emt 00:00:16]} 32. Rxd7+ {[%clk 00:11:15]} {[%emt 00:00:02]} Kf6 {[%clk
00:01:10]} {[%emt 00:00:02]} 33. Rxa7 {[%clk 00:11:13]} {[%emt 00:00:11]} Rc1+
{[%clk 00:00:58]} {[%emt 00:00:23]} 34. Kh2 {[%clk 00:11:21]} {[%emt 00:00:02]}
Rc6 {[%clk 00:01:04]} {[%emt 00:00:03]} 35. Nf1 {[%clk 00:10:22]} {[%emt
00:01:09]} e5 {[%clk 00:00:36]} {[%emt 00:00:38]} 36. Ne3 {[%clk 00:10:18]}
{[%emt 00:00:14]} h5 {[%clk 00:00:39]} {[%emt 00:00:08]} 37. Ra6 {[%clk
00:10:17]} {[%emt 00:00:10]} Ke6 {[%clk 00:00:23]} {[%emt 00:00:27]} 38. b3
{[%clk 00:10:16]} {[%emt 00:00:11]} Kd7 {[%clk 00:00:17]} {[%emt 00:00:16]} 39.
Nc4 {[%clk 00:10:22]} {[%emt 00:00:04]} Kc7 {[%clk 00:00:13]} {[%emt 00:00:14]}
40. Ra7+ {[%clk 00:10:19]} {[%emt 00:00:12]} Kb8 {[%clk 00:00:12]} {[%emt
00:00:11]} 41. Rg7 {[%clk 00:10:25]} {[%emt 00:00:04]} Re6 {[%clk 00:00:12]}
{[%emt 00:00:11]} 42. Rxe5 {[%clk 00:10:15]} {[%emt 00:00:20]} Rf6 {[%clk
00:00:20]} {[%emt 00:00:02]} 43. Re8# {[%clk 00:10:22]} {[%emt 00:00:02]} 1-0



[ePGN "0.1;DGT LiveChess/2.2.6"]

[Event "MČR družstev mladších žáků 2024"]
[Site "Harrachov, Czech Republic"]
[Date "2024.06.16"]
[Round "9.23"]
[White "Polacek Matous"]
[Black "Junova Alexandra"]
[Result "1-0"]
[TimeControl "25+10"]
[WhiteFideId "23760435"]
[BlackFideId "23754990"]
[WhiteElo "1152"]
[BlackElo "1105"]

1. e4 {[%clk 00:25:17]} {[%emt 00:00:02]} e5 {[%clk 00:25:15]} {[%emt
00:00:06]} 2. Nf3 {[%clk 00:25:23]} {[%emt 00:00:04]} Nc6 {[%clk 00:25:19]}
{[%emt 00:00:07]} 3. Bc4 {[%clk 00:25:27]} {[%emt 00:00:04]} f5 {[%clk
00:25:12]} {[%emt 00:00:18]} 4. d3 {[%clk 00:25:09]} {[%emt 00:00:28]} Bc5
{[%clk 00:25:08]} {[%emt 00:00:13]} 5. Be3 {[%clk 00:24:22]} {[%emt 00:00:57]}
Bxe3 {[%clk 00:24:30]} {[%emt 00:00:49]} 6. fxe3 {[%clk 00:24:27]} {[%emt
00:00:05]} fxe4 {[%clk 00:24:23]} {[%emt 00:00:17]} 7. dxe4 {[%clk 00:24:28]}
{[%emt 00:00:09]} d6 {[%clk 00:24:31]} {[%emt 00:00:03]} 8. O-O {[%clk
00:23:50]} {[%emt 00:00:46]} Bg4 {[%clk 00:24:22]} {[%emt 00:00:20]} 9. h3
{[%clk 00:22:22]} {[%emt 00:01:38]} Bh5 {[%clk 00:24:22]} {[%emt 00:00:11]} 10.
Nc3 {[%clk 00:21:44]} {[%emt 00:00:47]} Qe7 {[%clk 00:24:08]} {[%emt 00:00:21]}
11. Qd2 {[%clk 00:20:43]} {[%emt 00:01:13]} O-O-O {[%clk 00:23:49]} {[%emt
00:00:30]} 12. a4 {[%clk 00:19:44]} {[%emt 00:01:08]} Nf6 {[%clk 00:23:37]}
{[%emt 00:00:22]} 13. Nd5 {[%clk 00:18:56]} {[%emt 00:00:54]} Qd7 {[%clk
00:22:41]} {[%emt 00:01:10]} 14. Nxf6 {[%clk 00:16:30]} {[%emt 00:02:36]} gxf6
{[%clk 00:22:44]} {[%emt 00:00:07]} 15. b4 {[%clk 00:16:06]} {[%emt 00:00:34]}
Bf7 {[%clk 00:22:12]} {[%emt 00:00:42]} 16. Bxf7 {[%clk 00:15:15]} {[%emt
00:01:02]} Qxf7 {[%clk 00:22:05]} {[%emt 00:00:17]} 17. b5 {[%clk 00:14:46]}
{[%emt 00:00:39]} Ne7 {[%clk 00:21:46]} {[%emt 00:00:29]} 18. a5 {[%clk
00:13:43]} {[%emt 00:01:12]} Kb8 {[%clk 00:20:55]} {[%emt 00:01:02]} 19. Rfb1
{[%clk 00:10:37]} {[%emt 00:03:15]} Rhg8 {[%clk 00:20:44]} {[%emt 00:00:20]} 20.
b6 {[%clk 00:10:18]} {[%emt 00:00:30]} c6 {[%clk 00:20:49]} {[%emt 00:00:06]}
21. bxa7+ {[%clk 00:10:06]} {[%emt 00:00:22]} Kxa7 {[%clk 00:20:57]} {[%emt
00:00:02]} 22. Qb4 {[%clk 00:08:55]} {[%emt 00:01:18]} Rb8 {[%clk 00:19:32]}
{[%emt 00:01:37]} 23. Qb6+ {[%clk 00:08:56]} {[%emt 00:00:10]} Ka8 {[%clk
00:19:41]} {[%emt 00:00:01]} 24. a6 {[%clk 00:08:51]} {[%emt 00:00:15]} Nc8
{[%clk 00:19:42]} {[%emt 00:00:08]} 25. axb7# {[%clk 00:08:45]} {[%emt
00:00:06]} 1-0



[ePGN "0.1;DGT LiveChess/2.2.6"]

[Event "MČR družstev mladších žáků 2024"]
[Site "Harrachov, Czech Republic"]
[Date "2024.06.16"]
[Round "9.25"]
[White "Policar Martin"]
[Black "Jezek Jiri"]
[Result "1-0"]
[TimeControl "25+10"]
[WhiteFideId "23734868"]
[BlackFideId "23754672"]
[WhiteElo "1646"]
[BlackElo "1503"]

1. d4 {[%clk 00:24:59]} {[%emt 00:00:21]} Nf6 {[%clk 00:25:10]} {[%emt
00:00:10]} 2. c4 {[%clk 00:25:07]} {[%emt 00:00:02]} e6 {[%clk 00:25:17]}
{[%emt 00:00:03]} 3. Nf3 {[%clk 00:25:12]} {[%emt 00:00:05]} d5 {[%clk
00:25:19]} {[%emt 00:00:08]} 4. g3 {[%clk 00:25:18]} {[%emt 00:00:04]} c6
{[%clk 00:24:33]} {[%emt 00:00:56]} 5. Bg2 {[%clk 00:25:25]} {[%emt 00:00:04]}
Nbd7 {[%clk 00:23:58]} {[%emt 00:00:45]} 6. O-O {[%clk 00:25:31]} {[%emt
00:00:03]} Be7 {[%clk 00:23:40]} {[%emt 00:00:28]} 7. Nc3 {[%clk 00:25:33]}
{[%emt 00:00:08]} O-O {[%clk 00:23:13]} {[%emt 00:00:37]} 8. Nd2 {[%clk
00:25:41]} {[%emt 00:00:02]} Bb4 {[%clk 00:21:52]} {[%emt 00:01:31]} 9. e4
{[%clk 00:25:40]} {[%emt 00:00:11]} Bxc3 {[%clk 00:18:09]} {[%emt 00:03:54]} 10.
bxc3 {[%clk 00:25:47]} {[%emt 00:00:03]} dxe4 {[%clk 00:17:54]} {[%emt
00:00:24]} 11. Nxe4 {[%clk 00:25:51]} {[%emt 00:00:06]} Nxe4 {[%clk 00:17:58]}
{[%emt 00:00:06]} 12. Bxe4 {[%clk 00:25:58]} {[%emt 00:00:03]} Nf6 {[%clk
00:18:05]} {[%emt 00:00:03]} 13. Bg2 {[%clk 00:25:42]} {[%emt 00:00:27]} h6
{[%clk 00:13:34]} {[%emt 00:04:40]} 14. Rb1 {[%clk 00:24:28]} {[%emt 00:01:25]}
Qa5 {[%clk 00:10:05]} {[%emt 00:03:39]} 15. Qb3 {[%clk 00:24:19]} {[%emt
00:00:18]} Bd7 {[%clk 00:08:00]} {[%emt 00:02:15]} 16. Ba3 {[%clk 00:24:05]}
{[%emt 00:00:25]} Rfd8 {[%clk 00:06:52]} {[%emt 00:01:18]} 17. Be7 {[%clk
00:22:51]} {[%emt 00:01:23]} Re8 {[%clk 00:06:50]} {[%emt 00:00:12]} 18. Bxf6
{[%clk 00:22:53]} {[%emt 00:00:08]} gxf6 {[%clk 00:06:57]} {[%emt 00:00:04]} 19.
Qxb7 {[%clk 00:22:57]} {[%emt 00:00:05]} Red8 {[%clk 00:06:23]} {[%emt
00:00:43]} 20. Qb2 {[%clk 00:21:10]} {[%emt 00:01:58]} Rab8 {[%clk 00:05:46]}
{[%emt 00:00:48]} 21. Qd2 {[%clk 00:20:38]} {[%emt 00:00:42]} Kg7 {[%clk
00:05:20]} {[%emt 00:00:36]} 22. c5 {[%clk 00:18:34]} {[%emt 00:02:13]} e5
{[%clk 00:03:54]} {[%emt 00:01:37]} 23. Rxb8 {[%clk 00:18:32]} {[%emt
00:00:12]} Rxb8 {[%clk 00:03:51]} {[%emt 00:00:13]} 24. dxe5 {[%clk 00:18:38]}
{[%emt 00:00:04]} Qxc5 {[%clk 00:03:10]} {[%emt 00:00:51]} 25. exf6+ {[%clk
00:18:42]} {[%emt 00:00:06]} Kxf6 {[%clk 00:03:08]} {[%emt 00:00:12]} 26. Qf4+
{[%clk 00:18:45]} {[%emt 00:00:06]} Kg6 {[%clk 00:02:59]} {[%emt 00:00:19]} 27.
Qxb8 {[%clk 00:18:41]} {[%emt 00:00:14]} Qxc3 {[%clk 00:02:53]} {[%emt
00:00:16]} 28. Be4+ {[%clk 00:18:41]} {[%emt 00:00:10]} Kg7 {[%clk 00:02:45]}
{[%emt 00:00:19]} 29. Qxa7 {[%clk 00:18:09]} {[%emt 00:00:41]} Bh3 {[%clk
00:02:28]} {[%emt 00:00:27]} 30. Bg2 {[%clk 00:18:17]} {[%emt 00:00:03]} Bg4
{[%clk 00:02:09]} {[%emt 00:00:29]} 31. Bxc6 {[%clk 00:16:26]} {[%emt
00:02:00]} Be2 {[%clk 00:01:33]} {[%emt 00:00:47]} 32. Bd5 {[%clk 00:15:44]}
{[%emt 00:00:52]} Qf6 {[%clk 00:00:45]} {[%emt 00:00:56]} 33. Qxf7+ {[%clk
00:15:33]} {[%emt 00:00:22]} Qxf7 {[%clk 00:00:48]} {[%emt 00:00:07]} 34. Bxf7
{[%clk 00:15:41]} {[%emt 00:00:02]} Kxf7 {[%clk 00:00:49]} {[%emt 00:00:09]} 35.
Ra1 {[%clk 00:15:41]} {[%emt 00:00:11]} Kf6 {[%clk 00:00:51]} {[%emt 00:00:07]}
36. a4 {[%clk 00:15:49]} {[%emt 00:00:03]} Ba6 {[%clk 00:00:46]} {[%emt
00:00:14]} 37. a5 {[%clk 00:15:55]} {[%emt 00:00:05]} Kg5 {[%clk 00:00:49]}
{[%emt 00:00:07]} 38. f4+ {[%clk 00:16:00]} {[%emt 00:00:04]} Kg4 {[%clk
00:00:56]} {[%emt 00:00:03]} 39. Kf2 {[%clk 00:16:04]} {[%emt 00:00:06]} h5
{[%clk 00:00:48]} {[%emt 00:00:18]} 40. Ra4 {[%clk 00:15:55]} {[%emt 00:00:19]}
Kf5 {[%clk 00:00:45]} {[%emt 00:00:13]} 41. Rb4 {[%clk 00:15:58]} {[%emt
00:00:08]} h4 {[%clk 00:00:44]} {[%emt 00:00:10]} 42. Rb6 {[%clk 00:15:57]}
{[%emt 00:00:11]} hxg3+ {[%clk 00:00:44]} {[%emt 00:00:10]} 43. hxg3 {[%clk
00:16:05]} {[%emt 00:00:03]} Bd3 {[%clk 00:00:49]} {[%emt 00:00:05]} 44. a6
{[%clk 00:16:10]} {[%emt 00:00:04]} Be4 {[%clk 00:00:56]} {[%emt 00:00:03]} 45.
Rb5+ {[%clk 00:16:15]} {[%emt 00:00:05]} Kg4 {[%clk 00:01:02]} {[%emt
00:00:03]} 46. Rg5+ {[%clk 00:16:21]} {[%emt 00:00:05]} Kh3 {[%clk 00:01:08]}
{[%emt 00:00:04]} 47. f5 {[%clk 00:16:24]} {[%emt 00:00:08]} Bd5 {[%clk
00:00:43]} {[%emt 00:00:34]} 48. f6 {[%clk 00:16:32]} {[%emt 00:00:02]} Bf7
{[%clk 00:00:51]} {[%emt 00:00:02]} 49. a7 {[%clk 00:16:39]} {[%emt 00:00:04]}
1-0



[ePGN "0.1;DGT LiveChess/2.2.6"]

[Event "MČR družstev mladších žáků 2024"]
[Site "Harrachov, Czech Republic"]
[Date "2024.06.16"]
[Round "9.26"]
[White "Zelenka Tomas"]
[Black "Sudrich Radek"]
[Result "0-1"]
[TimeControl "25+10"]
[WhiteFideId "23750200"]
[BlackFideId "23734361"]
[WhiteElo "1255"]
[BlackElo "1470"]

1. e4 {[%clk 00:25:18]} {[%emt 00:00:01]} c5 {[%clk 00:25:17]} {[%emt
00:00:03]} 2. Nf3 {[%clk 00:25:25]} {[%emt 00:00:03]} e6 {[%clk 00:25:25]}
{[%emt 00:00:02]} 3. d4 {[%clk 00:25:30]} {[%emt 00:00:04]} cxd4 {[%clk
00:25:32]} {[%emt 00:00:04]} 4. Nxd4 {[%clk 00:25:26]} {[%emt 00:00:03]} Nf6
{[%clk 00:25:39]} {[%emt 00:00:03]} 5. Nc3 {[%clk 00:25:40]} {[%emt 00:00:06]}
Nc6 {[%clk 00:25:08]} {[%emt 00:00:41]} 6. Bc4 {[%clk 00:25:31]} {[%emt
00:00:18]} Bb4 {[%clk 00:25:15]} {[%emt 00:00:04]} 7. Bg5 {[%clk 00:24:43]}
{[%emt 00:00:57]} h6 {[%clk 00:25:11]} {[%emt 00:00:16]} 8. Bh4 {[%clk
00:24:45]} {[%emt 00:00:08]} g5 {[%clk 00:25:13]} {[%emt 00:00:08]} 9. Bg3
{[%clk 00:24:48]} {[%emt 00:00:07]} Nxe4 {[%clk 00:25:17]} {[%emt 00:00:06]} 10.
O-O {[%clk 00:24:22]} {[%emt 00:00:35]} Nxc3 {[%clk 00:25:21]} {[%emt
00:00:07]} 11. bxc3 {[%clk 00:24:29]} {[%emt 00:00:03]} Bxc3 {[%clk 00:25:28]}
{[%emt 00:00:03]} 12. Nb5 {[%clk 00:23:06]} {[%emt 00:01:32]} Be5 {[%clk
00:24:26]} {[%emt 00:01:10]} 13. Bxe5 {[%clk 00:22:35]} {[%emt 00:00:43]} Nxe5
{[%clk 00:24:28]} {[%emt 00:00:09]} 14. Qd6 {[%clk 00:21:33]} {[%emt 00:01:11]}
f6 {[%clk 00:24:29]} {[%emt 00:00:11]} 15. Nc7+ {[%clk 00:19:52]} {[%emt
00:01:49]} Kf7 {[%clk 00:24:37]} {[%emt 00:00:03]} 16. Nxa8 {[%clk 00:18:38]}
{[%emt 00:01:24]} Nxc4 {[%clk 00:24:44]} {[%emt 00:00:03]} 17. Qc5 {[%clk
00:18:37]} {[%emt 00:00:09]} Ne5 {[%clk 00:24:22]} {[%emt 00:00:34]} 18. Qxa7
{[%clk 00:17:27]} {[%emt 00:01:09]} h5 {[%clk 00:24:06]} {[%emt 00:00:27]} 19.
Qd4 {[%clk 00:15:43]} {[%emt 00:02:00]} Nc6 {[%clk 00:22:25]} {[%emt 00:01:55]}
20. Qe3 {[%clk 00:15:34]} {[%emt 00:00:16]} h4 {[%clk 00:22:12]} {[%emt
00:00:26]} 21. Nb6 {[%clk 00:15:04]} {[%emt 00:00:28]} g4 {[%clk 00:21:27]}
{[%emt 00:00:53]} 22. Nc4 {[%clk 00:15:12]} {[%emt 00:00:14]} d5 {[%clk
00:21:06]} {[%emt 00:00:33]} 23. Nb6 {[%clk 00:14:44]} {[%emt 00:00:37]} d4
{[%clk 00:19:32]} {[%emt 00:01:45]} 24. Qb3 {[%clk 00:14:39]} {[%emt 00:00:12]}
Ne5 {[%clk 00:19:02]} {[%emt 00:00:42]} 25. Nxc8 {[%clk 00:14:09]} {[%emt
00:00:41]} Qxc8 {[%clk 00:19:10]} {[%emt 00:00:02]} 26. Rab1 {[%clk 00:13:42]}
{[%emt 00:00:34]} Kg6 {[%clk 00:18:21]} {[%emt 00:01:01]} 27. Qxb7 {[%clk
00:12:47]} {[%emt 00:01:05]} Qxc2 {[%clk 00:18:28]} {[%emt 00:00:02]} 28. Qb2
{[%clk 00:11:38]} {[%emt 00:01:16]} Qf5 {[%clk 00:18:01]} {[%emt 00:00:37]} 29.
Qxd4 {[%clk 00:09:55]} {[%emt 00:01:57]} h3 {[%clk 00:18:08]} {[%emt 00:00:04]}
30. Rfe1 {[%clk 00:08:07]} {[%emt 00:01:56]} hxg2 {[%clk 00:18:13]} {[%emt
00:00:06]} 31. Qe4 {[%clk 00:08:12]} {[%emt 00:00:05]} Nf3+ {[%clk 00:18:12]}
{[%emt 00:00:12]} 32. Kxg2 {[%clk 00:08:08]} {[%emt 00:00:13]} Rxh2+ {[%clk
00:18:21]} {[%emt 00:00:02]} 33. Kg3 {[%clk 00:08:11]} {[%emt 00:00:07]} Rh3+
{[%clk 00:18:23]} {[%emt 00:00:08]} 34. Kg2 {[%clk 00:08:16]} {[%emt 00:00:04]}
Nxe1+ {[%clk 00:16:10]} {[%emt 00:02:23]} 35. Rxe1 {[%clk 00:08:10]} {[%emt
00:00:16]} Qxe4+ {[%clk 00:16:18]} {[%emt 00:00:03]} 36. Rxe4 {[%clk 00:08:17]}
{[%emt 00:00:02]} Ra3 {[%clk 00:16:21]} {[%emt 00:00:07]} 37. Rxg4+ {[%clk
00:08:19]} {[%emt 00:00:09]} Kf5 {[%clk 00:16:28]} {[%emt 00:00:02]} 38. Rb4
{[%clk 00:07:42]} {[%emt 00:00:45]} Rxa2 {[%clk 00:16:36]} {[%emt 00:00:05]} 39.
Kg3 {[%clk 00:07:20]} {[%emt 00:00:31]} e5 {[%clk 00:15:37]} {[%emt 00:01:08]}
40. f3 {[%clk 00:06:27]} {[%emt 00:01:05]} Rd2 {[%clk 00:15:22]} {[%emt
00:00:18]} 41. Re4 {[%clk 00:06:03]} {[%emt 00:00:35]} Rd4 {[%clk 00:15:21]}
{[%emt 00:00:17]} 42. Re1 {[%clk 00:06:03]} {[%emt 00:00:06]} Ke6 {[%clk
00:15:08]} {[%emt 00:00:24]} 43. Kf2 {[%clk 00:05:56]} {[%emt 00:00:18]} f5
{[%clk 00:15:15]} {[%emt 00:00:06]} 44. Kg3 {[%clk 00:05:58]} {[%emt 00:00:07]}
Rd8 {[%clk 00:14:19]} {[%emt 00:01:06]} 45. Kf2 {[%clk 00:05:10]} {[%emt
00:00:58]} f4 {[%clk 00:14:23]} {[%emt 00:00:06]} 46. Re4 {[%clk 00:05:11]}
{[%emt 00:00:08]} Rh8 {[%clk 00:14:18]} {[%emt 00:00:16]} 47. Kg2 {[%clk
00:04:49]} {[%emt 00:00:30]} Ra8 {[%clk 00:14:00]} {[%emt 00:00:25]} 48. Kf2
{[%clk 00:04:20]} {[%emt 00:00:42]} Ra2+ {[%clk 00:14:07]} {[%emt 00:00:05]} 49.
Kf1 {[%clk 00:04:27]} {[%emt 00:00:03]} Kf5 {[%clk 00:14:14]} {[%emt 00:00:02]}
50. Ke1 {[%clk 00:03:47]} {[%emt 00:00:49]} Kg5 {[%clk 00:12:54]} {[%emt
00:01:24]} 51. Rxe5+ {[%clk 00:03:34]} {[%emt 00:00:31]} Kh4 {[%clk 00:13:03]}
{[%emt 00:00:01]} 52. Rb5 {[%clk 00:03:04]} {[%emt 00:00:37]} Kg3 {[%clk
00:13:11]} {[%emt 00:00:05]} 53. Rb3 {[%clk 00:03:11]} {[%emt 00:00:02]} Rf2
{[%clk 00:13:04]} {[%emt 00:00:12]} 54. Rb8 {[%clk 00:02:24]} {[%emt 00:01:03]}
Kxf3 {[%clk 00:12:00]} {[%emt 00:01:14]} 55. Rb3+ {[%clk 00:02:20]} {[%emt
00:00:13]} Kg2 {[%clk 00:12:08]} {[%emt 00:00:03]} 56. Rh3 {[%clk 00:01:28]}
{[%emt 00:01:02]} Rf1+ {[%clk 00:11:29]} {[%emt 00:00:49]} 57. Ke2 {[%clk
00:01:23]} {[%emt 00:00:15]} f3+ {[%clk 00:11:36]} {[%emt 00:00:03]} 0-1



[ePGN "0.1;DGT LiveChess/2.2.6"]